bitfinex-derivatives/quotes_ETHF0:USTF0_20230830
["timestamp","ask_amount","ask_price","bid_price","bid_amount"]
[1693387805469,5.254,1712.0,1711.9,15.24913731]
[1693387805671,11.40966901,1712.0,1711.9,1.52713731]
[1693387806778,2.26993648,1712.0,1711.9,8.21471907]
[1693387806977,2.3983,1712.1,1711.9,8.21471907]
[1693387806978,2.3983,1712.1,1711.9,15.88534246]
[1693387807170,3.07623253,1712.1,1711.9,15.88534246]
[1693387807670,3.07623253,1712.1,1711.9,2.96071907]
[1693387807671,5.254,1712.0,1711.9,2.96071907]
[1693387807872,5.254,1712.0,1711.9,1.43358176]
[1693387809268,3.07623253,1712.1,1711.9,9.00833915]
[1693387809472,2.3983,1712.1,1711.9,9.00833915]
[1693387810474,8.20715509,1712.4,1712.0,7.0051]
[1693387810668,4.54116516,1712.4,1712.3,5.254]
[1693387810872,3.95706516,1712.4,1712.3,6.68758176]
[1693387811073,2.5699,1712.5,1712.3,16.17401087]
[1693387811979,2.5699,1712.5,1712.4,5.254]
[1693387812383,2.5699,1712.5,1712.4,12.88144971]
[1693387812878,5.89021581,1712.5,1712.4,12.88144971]
[1693387813780,0.29205623,1712.5,1712.4,12.88144971]
[1693387813972,3.02825958,1712.6,1712.4,12.88144971]
[1693387814175,3.32029558,1712.6,1712.5,3.18468176]
[1693387814577,2.73639558,1712.6,1712.5,10.85993692]
[1693387814777,3.41432811,1712.6,1712.5,10.85993692]
[1693387815178,2.73639558,1712.6,1712.5,10.85993692]
[1693387816177,0.292036,1712.6,1712.5,10.85993692]
[1693387817290,0.292036,1712.6,1712.5,16.11393692]
[1693387817898,0.292036,1712.6,1712.5,10.85993692]
[1693387818189,0.29203488,1712.6,1712.5,10.85993692]
[1693387818583,0.96996741,1712.6,1712.5,10.85993692]
[1693387819585,0.29203488,1712.6,1712.5,10.85993692]
[1693387821585,0.29203488,1712.6,1712.5,19.32173692]
[1693387822687,3.79434667,1712.8,1712.5,19.32173692]
[1693387822986,2.85776156,1712.9,1712.7,8.4618]
[1693387823188,11.7586413,1713.2,1712.8,8.43868176]
[1693387823392,14.02857778,1713.2,1713.1,5.254]
[1693387823688,14.70651031,1713.2,1713.1,5.254]
[1693387824479,14.70651031,1713.2,1713.1,6.68758176]
[1693387824990,14.02857778,1713.2,1713.1,6.68758176]
[1693387825290,11.7586413,1713.2,1713.1,6.68758176]
[1693387826012,5.7017,1713.2,1713.1,6.68758176]
[1693387826790,11.63363253,1713.2,1712.9,5.254]
[1693387827190,11.63363253,1713.2,1713.0,7.56029323]
[1693387827490,13.90356901,1713.2,1713.0,7.56029323]
[1693387827729,13.90356901,1713.2,1713.0,8.99387499]
[1693387828091,13.90356901,1713.2,1713.0,9.00263078]
[1693387828289,13.90356901,1713.2,1713.0,7.56904902]
[1693387828694,13.90356901,1713.2,1713.0,0.00875579]
[1693387828995,0.29198346,1713.1,1713.0,0.00875579]
[1693387830092,0.29198346,1713.1,1713.0,5.26275579]
[1693387830395,5.54598346,1713.1,1713.0,0.00875579]
[1693387833998,5.54598673,1713.1,1713.0,0.00875579]
[1693387834494,0.29198673,1713.1,1713.0,6.69633755]
[1693387834699,0.29198673,1713.1,1713.0,14.36287833]
[1693387837497,5.7017,1713.2,1713.0,14.36287833]
[1693387838200,0.29196779,1713.1,1713.0,14.36287833]
[1693387838396,5.7017,1713.2,1713.0,14.36287833]
[1693387838599,5.7017,1713.2,1713.1,7.0051]
[1693387838600,2.4939,1713.2,1713.1,7.0051]
[1693387838896,2.4939,1713.2,1713.1,14.72005687]
[1693387839696,2.4939,1713.2,1713.1,17.92785687]
[1693387842598,2.4939,1713.2,1713.1,24.30013541]
[1693387842801,2.27825104,1713.3,1713.1,24.30013541]
[1693387843001,1.69455104,1713.3,1713.2,1.43358176]
[1693387843412,2.6043,1713.4,1713.3,10.508]
[1693387843699,2.6043,1713.4,1713.3,20.01514936]
[1693387843899,6.39003685,1713.7,1713.3,29.72221663]
[1693387844094,0.29190465,1713.6,1713.3,24.46821663]
[1693387844297,6.0982415,1713.7,1713.5,5.254]
[1693387844499,2.31680465,1713.7,1713.6,5.254]
[1693387844696,9.04611051,1713.7,1713.6,10.788649]
[1693387845200,5.26467366,1713.7,1713.6,10.788649]
[1693387845402,8.28808682,1713.7,1713.6,10.788649]
[1693387845603,3.02341316,1713.7,1713.6,12.22223076]
[1693387846097,3.02341316,1713.8,1713.6,12.22223076]
[1693387846397,9.47750697,1714.2,1713.8,5.254]
[1693387846600,6.40573685,1714.2,1714.1,5.254]
[1693387846897,9.35360586,1714.2,1714.1,5.254]
[1693387847098,9.35360586,1714.2,1714.1,6.68758176]
[1693387847099,6.40573685,1714.2,1714.1,6.68758176]
[1693387847297,7.08366938,1714.2,1714.1,5.254]
[1693387847495,3.30223253,1714.2,1714.1,5.254]
[1693387847738,3.30223253,1714.2,1714.1,6.68758176]
[1693387847896,3.30223253,1714.2,1714.1,5.254]
[1693387849197,2.6243,1714.2,1714.1,5.254]
[1693387849393,3.30223253,1714.2,1714.0,7.0051]
[1693387849601,3.30223253,1714.2,1714.0,5.254]
[1693387850003,3.30223253,1714.2,1714.0,5.26275069]
[1693387851697,3.30223253,1714.2,1714.0,7.01385069]
[1693387852097,3.30223253,1714.2,1714.0,5.26275069]
[1693387852699,2.26993648,1714.1,1714.0,5.26275069]
[1693387854009,2.26993648,1714.1,1714.0,0.00875069]
[1693387856506,7.8783,1714.2,1714.0,1.44233245]
[1693387857908,8.55623253,1714.2,1714.0,1.44233245]
[1693387860410,3.30223253,1714.2,1714.0,6.69633245]
[1693387861908,3.30223253,1714.2,1714.1,5.254]
[1693387862609,2.6243,1714.2,1714.1,5.254]
[1693387863215,3.30223253,1714.2,1714.1,5.254]
[1693387864717,3.30223253,1714.2,1714.0,5.26275069]
[1693387864906,2.26993648,1714.1,1714.0,5.26275069]
[1693387865111,2.56178917,1714.1,1714.0,5.26275069]
[1693387866624,6.33426103,1714.1,1714.0,5.26275069]
[1693387867425,7.50136103,1714.1,1713.5,0.47603482]
[1693387867625,3.2078,1713.7,1713.3,13.4514]
[1693387867830,2.26993648,1713.6,1713.3,10.2436]
[1693387868133,4.92223648,1713.6,1713.5,5.254]
[1693387868333,5.60016901,1713.6,1713.5,5.254]
[1693387870434,6.76766901,1713.6,1713.4,0.00875375]
[1693387870636,3.2078,1713.5,1713.4,0.00875375]
[1693387871135,3.49972118,1713.5,1713.4,0.00875375]
[1693387871435,4.66732118,1713.5,1713.4,0.00875375]
[1693387872550,4.66734169,1713.5,1713.4,0.00875375]
[1693387872740,4.66734169,1713.5,1713.4,1e-08]
[1693387872930,1.1676,1713.4,1713.3,5.254]
[1693387873140,1.45954169,1713.4,1712.8,8.4618]
[1693387873440,3.2078,1713.0,1712.9,7.74373401]
[1693387873638,3.2078,1713.0,1712.9,12.99773401]
[1693387873939,3.2078,1713.0,1712.9,5.254]
[1693387885349,3.2078,1713.0,1712.8,5.26275682]
[1693387885537,2.94786901,1712.9,1712.8,5.26275682]
[1693387885736,2.94786901,1712.9,1712.8,6.69633858]
[1693387886747,2.94786901,1712.9,1712.8,5.26275682]
[1693387887237,5.6614,1713.0,1712.8,6.69633858]
[1693387887441,5.6614,1713.0,1712.9,5.254]
[1693387887442,7.93133648,1713.0,1712.9,5.254]
[1693387888551,8.60926901,1713.0,1712.9,5.254]
[1693387890045,5.47773648,1713.0,1712.9,5.254]
[1693387890654,6.15566901,1713.0,1712.9,5.254]
[1693387890843,3.2078,1713.0,1712.9,7.0051]
[1693387891651,3.88573253,1713.0,1712.9,1.7511]
[1693387891851,6.15566901,1713.0,1712.8,6.69633858]
[1693387892844,6.15566901,1713.0,1712.8,5.26275682]
[1693387893845,3.2078,1713.0,1712.9,5.254]
[1693387894052,3.2078,1713.0,1712.9,7.0051]
[1693387898858,3.88573253,1713.0,1712.9,7.0051]
[1693387899057,6.15566901,1713.0,1712.9,5.254]
[1693387899557,6.15566901,1713.0,1712.8,5.26275682]
[1693387901652,7.66776458,1713.0,1712.8,5.26275682]
[1693387903060,7.66776458,1713.0,1712.8,6.69633858]
[1693387903562,7.66776458,1713.0,1712.8,8.44743858]
[1693387906305,6.15566901,1713.0,1712.8,8.44743858]
[1693387906858,9.94044364,1713.0,1712.8,8.44743858]
[1693387907260,15.19444364,1713.0,1712.8,0.00875682]
[1693387907463,2.4572,1712.9,1712.8,0.00875682]
[1693387910973,5.47773648,1713.0,1712.8,6.69633858]
[1693387911261,8.65816901,1713.0,1712.8,6.69633858]
[1693387911856,0.29198649,1712.9,1712.8,6.69633858]
[1693387912057,3.3198062,1712.9,1712.8,6.69633858]
[1693387912972,3.03363874,1712.9,1712.8,6.69633858]
[1693387913169,3.3256251,1712.9,1712.8,6.69633858]
[1693387913464,0.29198636,1712.9,1712.8,6.69633858]
[1693387914067,0.29198636,1712.9,1712.8,5.26275682]
[1693387914662,0.29198636,1712.9,1712.8,6.69633858]
[1693387917068,5.54598636,1712.9,1712.8,0.00875682]
[1693387918504,5.254,1712.9,1712.8,0.00875682]
[1693387918769,9.34804894,1712.9,1712.8,0.00875682]
[1693387919267,8.07856966,1712.9,1712.8,0.00875682]
[1693387924582,5.54598755,1712.9,1712.8,0.00875682]
[1693387924771,10.10846121,1712.9,1712.8,0.00875682]
[1693387927381,10.10846121,1712.9,1712.8,7.67607484]
[1693387927831,5.54598755,1712.9,1712.8,9.1096566]
[1693387928004,12.64161951,1712.9,1712.8,9.1096566]
[1693387928577,7.38761951,1712.9,1712.8,9.1096566]
[1693387931491,8.06555204,1712.9,1712.8,9.1096566]
[1693387931785,7.38761951,1712.9,1712.8,9.1096566]
[1693387931986,7.38761951,1712.9,1712.8,14.3636566]
[1693387933282,2.53278964,1712.9,1712.8,14.3636566]
[1693387938794,2.53278964,1712.9,1712.8,17.63257152]
[1693387938795,4.81352649,1712.9,1712.8,17.63257152]
[1693387938999,5.10547579,1712.9,1712.8,17.63257152]
[1693387939191,0.76018192,1713.0,1712.8,23.65201657]
[1693387939492,2.66546055,1713.1,1712.9,14.02674227]
[1693387939796,2.08166055,1713.1,1713.0,16.15461033]
[1693387939991,2.37358486,1713.1,1713.0,16.15461033]
[1693387940198,0.29192431,1713.1,1713.0,16.15461033]
[1693387940393,0.29192466,1713.1,1713.0,16.15461033]
[1693387941192,3.50945239,1713.3,1713.0,16.15461033]
[1693387941392,3.80137637,1713.3,1713.2,5.254]
[1693387941593,0.29192398,1713.3,1713.2,8.43868176]
[1693387941892,0.29192398,1713.3,1713.2,16.02168255]
[1693387945499,0.96985651,1713.3,1713.2,7.0051]
[1693387945824,0.67793253,1713.3,1713.2,7.0051]
[1693387945996,0.96985636,1713.3,1713.2,8.43868176]
[1693387946900,0.67793253,1713.3,1713.2,8.43868176]
[1693387947800,8.02439177,1713.4,1713.2,8.43868176]
[1693387949100,5.75445529,1713.4,1713.2,8.43868176]
[1693387950304,2.54665529,1713.4,1713.2,8.43868176]
[1693387953207,3.22458782,1713.4,1713.2,8.43868176]
[1693387954208,3.22458782,1713.4,1713.2,8.90206876]
[1693387956399,2.26993648,1713.3,1713.2,0.463387]
[1693387956604,2.56185126,1713.3,1713.1,8.4618]
[1693387956805,0.67793253,1713.2,1713.1,8.4618]
[1693387957107,2.26993648,1713.3,1713.2,7.58574346]
[1693387957306,2.56185,1713.3,1713.2,7.58574346]
[1693387957611,3.23978253,1713.3,1713.2,7.58574346]
[1693387958404,2.94786901,1713.3,1713.2,7.58574346]
[1693387958607,2.94786901,1713.3,1713.1,8.4618]
[1693387959211,2.26993648,1713.3,1713.1,9.89538176]
[1693387960410,7.80065529,1713.4,1713.2,7.70322277]
[1693387960613,7.80065529,1713.4,1713.3,1.43358176]
[1693387960813,8.77050044,1713.4,1713.2,9.45432277]
[1693387961117,8.47858782,1713.4,1713.3,1.43358176]
[1693387961415,8.77049894,1713.4,1713.3,1.43358176]
[1693387961709,12.5637282,1713.4,1713.2,1.7511]
[1693387961909,12.5637282,1713.4,1713.2,8.43868176]
[1693387961910,0.29191112,1713.3,1713.2,8.43868176]
[1693387962712,0.29191112,1713.3,1713.2,16.0287982]
[1693387965007,0.00875529,1713.4,1713.2,16.0287982]
[1693387965212,2.3993,1713.6,1713.3,8.4618]
[1693387965415,0.29186959,1713.5,1713.4,3.18468176]
[1693387965714,0.29186959,1713.5,1713.4,16.15782853]
[1693387966212,0.29186733,1713.5,1713.4,16.15782853]
[1693387966509,0.29186721,1713.5,1713.4,16.15782853]
[1693387967315,3.2078,1713.8,1713.4,16.15782853]
[1693387967517,0.29186574,1713.7,1713.5,5.254]
[1693387967814,0.29186574,1713.7,1713.6,3.18468176]
[1693387969213,0.29186574,1713.7,1713.6,10.760726]
[1693387969816,2.4325,1713.8,1713.6,16.014726]
[1693387970009,2.4325,1713.8,1713.7,5.254]
[1693387970316,2.72434691,1713.8,1713.7,12.89770925]
[1693387974415,3.03453052,1714.0,1713.7,16.10550925]
[1693387974615,3.32635831,1714.0,1713.9,5.254]
[1693387974918,2.74285831,1714.0,1713.9,12.66528572]
[1693387975714,3.42079084,1714.0,1713.9,12.66528572]
[1693387975912,2.74285831,1714.0,1713.9,12.66528572]
[1693387976312,3.42079084,1714.0,1713.9,12.66528572]
[1693387977417,2.74285831,1714.0,1713.9,12.66528572]
[1693387977619,3.42079084,1714.0,1713.9,12.66528572]
[1693387977919,4.17756032,1714.0,1713.9,5.254]
[1693387981923,4.17756032,1714.0,1713.8,5.2627517]
[1693387982120,0.29182779,1713.9,1713.8,5.2627517]
[1693387982318,2.56176427,1713.9,1713.8,5.2627517]
[1693387985316,6.35739096,1713.9,1713.8,5.2627517]
[1693387991725,6.35739096,1713.9,1713.8,6.69633346]
[1693387991928,4.08745448,1713.9,1713.8,1.44233346]
[1693387992820,4.08745448,1713.9,1713.8,9.09115541]
[1693387993129,4.08745448,1713.9,1713.8,14.34515541]
[1693387995235,4.76538701,1713.9,1713.8,12.91157365]
[1693387995624,4.76538701,1713.9,1713.8,14.34515541]
[1693387996025,4.08745448,1713.9,1713.8,14.34515541]
[1693387997428,4.76538701,1713.9,1713.8,14.34515541]
[1693387998131,4.08745448,1713.9,1713.8,14.34515541]
[1693387998725,3.79562669,1713.9,1713.8,14.34515541]
[1693387999333,0.29182779,1713.9,1713.8,14.34515541]
[1693387999533,0.29182779,1714.0,1713.8,14.34515541]
[1693388000033,3.79815366,1713.9,1713.8,14.34515541]
[1693388000235,0.29182779,1713.9,1713.8,14.34515541]
[1693388000637,0.29182779,1714.0,1713.8,14.34515541]
[1693388000934,0.29182779,1713.9,1713.8,14.34515541]
[1693388001140,0.29182779,1714.0,1713.8,14.34515541]
[1693388001333,10.28571285,1714.1,1713.8,14.34515541]
[1693388001334,0.29182779,1713.9,1713.8,14.34515541]
[1693388001535,0.29182779,1714.0,1713.8,14.34515541]
[1693388001743,0.29182779,1713.9,1713.8,14.34515541]
[1693388001934,0.29182779,1714.0,1713.8,14.34515541]
[1693388002133,0.29182779,1713.9,1713.8,9.09115541]
[1693388002335,0.29182779,1714.0,1713.8,14.34515541]
[1693388002534,0.29182779,1713.9,1713.8,9.09115541]
[1693388002735,0.29183183,1714.0,1713.8,14.34515541]
[1693388002942,0.29183183,1713.9,1713.8,9.09115541]
[1693388003140,0.29183183,1714.0,1713.8,14.34515541]
[1693388003341,0.29183183,1713.9,1713.8,9.09115541]
[1693388003637,0.29183183,1714.0,1713.8,14.34515541]
[1693388003843,0.29183183,1713.9,1713.8,10.84225541]
[1693388004136,0.29183183,1713.9,1713.8,16.09625541]
[1693388004731,4.84367236,1714.0,1713.8,16.09625541]
[1693388005043,4.84367236,1714.0,1713.9,5.254]
[1693388005539,5.52160489,1714.0,1713.9,5.254]
[1693388005960,0.67793253,1714.0,1713.9,5.254]
[1693388006138,7.39932559,1714.0,1713.9,5.254]
[1693388006742,5.53012423,1714.0,1713.9,5.254]
[1693388007433,0.29183197,1714.0,1713.9,5.254]
[1693388009040,0.9697645,1714.0,1713.9,5.254]
[1693388010136,5.53012423,1714.0,1713.9,5.254]
[1693388010340,15.15912423,1714.0,1713.8,0.0087517]
[1693388010642,7.12212818,1713.9,1713.8,0.0087517]
[1693388011046,9.58002818,1713.9,1713.8,0.0087517]
[1693388011440,4.72783648,1713.9,1713.8,0.0087517]
[1693388011639,9.58566191,1713.9,1713.8,1e-08]
[1693388012240,12.17699515,1713.9,1713.8,1e-08]
[1693388012440,14.06207519,1713.9,1713.8,1e-08]
[1693388013447,9.49611229,1713.9,1713.8,1e-08]
[1693388013650,6.90477905,1713.9,1713.8,1e-08]
[1693388013940,5.01969901,1713.9,1713.8,1e-08]
[1693388014545,11.10764954,1713.9,1713.8,1e-08]
[1693388016442,16.36164954,1713.9,1713.8,1e-08]
[1693388017546,8.64974954,1713.9,1713.8,1e-08]
[1693388017741,7.88860979,1713.9,1713.8,1e-08]
[1693388017943,8.64974954,1713.9,1713.8,1e-08]
[1693388018344,10.53482958,1713.9,1713.8,1e-08]
[1693388018547,8.64974954,1713.9,1713.8,1e-08]
[1693388020547,2.56179901,1713.9,1713.8,1e-08]
[1693388020749,8.64974954,1713.9,1713.8,1e-08]
[1693388021639,13.21543994,1713.9,1713.8,1e-08]
[1693388021848,7.12748941,1713.9,1713.8,1e-08]
[1693388022050,12.38148941,1713.9,1713.8,1e-08]
[1693388022342,14.26656945,1713.9,1713.8,1e-08]
[1693388024346,15.02751785,1713.9,1713.8,1e-08]
[1693388029749,13.14243781,1713.9,1713.8,1e-08]
[1693388029950,15.02751785,1713.9,1713.8,1e-08]
[1693388030946,15.02751785,1713.9,1713.8,1.43358177]
[1693388031243,15.02751785,1713.9,1713.8,1e-08]
[1693388031545,15.02751785,1713.9,1713.8,1.43358177]
[1693388032057,15.02751785,1713.9,1713.8,1e-08]
[1693388040065,0.00199999,1713.7,1713.3,2.5986]
[1693388040264,3.80341102,1713.4,1713.3,4.3497]
[1693388040464,3.80341102,1713.4,1713.3,5.78328176]
[1693388040764,9.05741102,1713.4,1713.3,5.78328176]
[1693388041058,9.34927355,1713.4,1713.3,5.78328176]
[1693388042163,4.09527355,1713.4,1713.3,5.78328176]
[1693388044665,3.33380079,1713.4,1713.3,5.78328176]
[1693388049363,3.33380079,1713.4,1713.3,13.25031453]
[1693388050558,4.01173332,1713.4,1713.3,13.25031453]
[1693388050765,9.43159506,1713.4,1713.3,2.5986]
[1693388051766,15.63030608,1713.4,1713.3,2.5986]
[1693388057075,12.55707355,1713.4,1713.3,4.03218176]
[1693388057274,7.30307355,1713.4,1713.3,4.03218176]
[1693388059273,7.98100608,1713.4,1713.3,2.5986]
[1693388059667,7.98100608,1713.4,1713.3,4.03218176]
[1693388059875,7.22024844,1713.4,1713.3,4.03218176]
[1693388060075,7.22024844,1713.4,1713.3,2.5986]
[1693388060270,7.22024844,1713.4,1713.3,4.03218176]
[1693388060469,4.17759506,1713.4,1713.3,10.28251215]
[1693388060669,7.22019074,1713.4,1713.3,10.28251215]
[1693388061277,7.22015677,1713.4,1713.3,10.28251215]
[1693388061475,7.22015677,1713.4,1713.3,11.71609391]
[1693388061882,12.47415677,1713.4,1713.3,11.71609391]
[1693388063082,12.47415677,1713.4,1713.3,10.28251215]
[1693388063271,12.47415677,1713.4,1713.3,11.71609391]
[1693388063674,11.79622424,1713.4,1713.3,11.71609391]
[1693388064081,12.47415677,1713.4,1713.3,11.71609391]
[1693388064479,11.79622424,1713.4,1713.3,11.71609391]
[1693388064778,8.75366253,1713.4,1713.3,11.71609391]
[1693388065482,11.79634671,1713.4,1713.3,11.71609391]
[1693388065877,8.75366253,1713.4,1713.3,11.71609391]
[1693388066182,9.43159506,1713.4,1713.3,11.71609391]
[1693388066378,3.49966253,1713.4,1713.3,11.71609391]
[1693388066579,3.33471027,1713.4,1713.3,11.71609391]
[1693388066881,4.09527355,1713.4,1713.3,11.71609391]
[1693388068390,4.77320608,1713.4,1713.3,11.71609391]
[1693388068587,10.02720608,1713.4,1713.3,10.28251215]
[1693388069589,10.02720608,1713.4,1713.3,11.71609391]
[1693388071489,9.34927355,1713.4,1713.3,11.71609391]
[1693388072293,4.09527355,1713.4,1713.3,11.71609391]
[1693388072694,3.80341102,1713.4,1713.3,11.71609391]
[1693388073296,3.80341102,1713.4,1713.3,14.92389391]
[1693388073496,4.09527355,1713.4,1713.3,14.92389391]
[1693388073696,3.80341102,1713.4,1713.3,14.92389391]
[1693388074598,3.80341102,1713.4,1713.3,11.71609391]
[1693388074794,3.04363247,1713.4,1713.3,11.71609391]
[1693388075000,3.04363247,1713.4,1713.3,14.92389391]
[1693388076408,1.52191208,1713.4,1713.3,31.28798122]
[1693388076605,3.04363247,1713.6,1713.4,1.64157693]
[1693388076800,2.46003247,1713.7,1713.5,13.72116669]
[1693388077004,2.46003247,1713.7,1713.6,5.254]
[1693388077204,2.16826002,1713.7,1713.6,8.4258909]
[1693388077397,1.87643247,1713.7,1713.6,14.48836846]
[1693388077593,0.29182755,1713.7,1713.6,16.01868243]
[1693388077804,0.29182755,1713.8,1713.6,16.01868243]
[1693388078003,0.29182755,1713.7,1713.6,10.76468243]
[1693388078199,0.29182755,1713.8,1713.6,16.01868243]
[1693388078407,5.99213857,1713.9,1713.7,5.254]
[1693388078599,5.99213857,1713.9,1713.8,1.64157693]
[1693388078803,5.99213857,1713.9,1713.8,9.10370881]
[1693388081311,2.18872755,1713.9,1713.8,9.10370881]
[1693388084514,6.6700711,1713.9,1713.8,9.10370881]
[1693388085003,11.9240711,1713.9,1713.6,7.6951]
[1693388085209,11.9240711,1713.9,1713.6,5.254]
[1693388085417,11.9240711,1713.9,1713.7,7.75234461]
[1693388085610,14.19400758,1713.9,1713.7,7.75234461]
[1693388086111,14.19400758,1713.9,1713.7,9.18592637]
[1693388087308,10.39059656,1713.9,1713.7,9.18592637]
[1693388087713,14.19400758,1713.9,1713.7,9.18592637]
[1693388089010,3.80341102,1713.8,1713.7,9.18592637]
[1693388091307,11.24613857,1713.9,1713.7,9.18592637]
[1693388092608,11.24613857,1713.9,1713.8,1.64157693]
[1693388095304,5.99213857,1713.9,1713.8,1.64157693]
[1693388095911,2.18872755,1713.9,1713.8,1.64157693]
[1693388096215,2.18872755,1713.9,1713.8,6.89557693]
[1693388098415,2.48054617,1713.9,1713.8,6.89557693]
[1693388099120,2.48054591,1713.9,1713.8,6.89557693]
[1693388099414,2.86666008,1713.9,1713.8,6.89557693]
[1693388099811,8.41248317,1713.9,1713.7,3.2078]
[1693388100012,8.12066008,1713.9,1713.6,5.72338512]
[1693388100211,4.92273648,1713.8,1713.6,5.72338512]
[1693388100410,0.67793253,1713.7,1713.6,5.72338512]
[1693388101418,5.93193253,1713.7,1713.6,0.46938512]
[1693388101709,6.22379044,1713.7,1713.3,8.75474266]
[1693388101915,10.12713648,1713.6,1713.3,3.50074266]
[1693388102113,0.67793253,1713.5,1713.4,9.0172666]
[1693388102318,10.12713648,1713.6,1713.4,9.0172666]
[1693388102711,2.6032,1713.6,1713.4,14.2712666]
[1693388104614,2.6032,1713.6,1713.5,1.64157693]
[1693388105017,2.6032,1713.6,1713.5,9.23415429]
[1693388105213,3.28113253,1713.6,1713.5,9.23415429]
[1693388105425,5.83283253,1713.6,1713.5,9.23415429]
[1693388105916,5.83283253,1713.6,1713.5,7.59257736]
[1693388106518,11.08683253,1713.6,1713.5,7.59257736]
[1693388106817,11.37868491,1713.6,1713.5,7.59257736]
[1693388107417,17.62347838,1713.6,1713.5,7.59257736]
[1693388108017,17.62347838,1713.6,1713.5,9.02615912]
[1693388108220,17.62347838,1713.6,1713.5,7.59257736]
[1693388111322,17.62347838,1713.6,1713.5,9.02615912]
[1693388111621,16.94554585,1713.6,1713.5,9.02615912]
[1693388113119,13.90855238,1713.6,1713.5,9.02615912]
[1693388113317,14.58648491,1713.6,1713.5,9.02615912]
[1693388113817,17.62347838,1713.6,1713.5,9.02615912]
[1693388114121,17.62492748,1713.6,1713.5,9.02615912]
[1693388114620,17.62492748,1713.6,1713.5,7.59257736]
[1693388114823,17.62492748,1713.6,1713.4,0.46481437]
[1693388115029,17.33306381,1713.6,1713.3,9.9902489]
[1693388115325,17.33306381,1713.6,1713.4,7.53873054]
[1693388117122,17.33306381,1713.6,1713.4,8.9723123]
[1693388117318,2.6032,1713.6,1713.4,14.2263123]
[1693388117623,3.03843128,1713.7,1713.5,3.2078]
[1693388117824,5.80227655,1713.7,1713.5,4.84937693]
[1693388118021,5.51043128,1713.7,1713.6,9.04040603]
[1693388118216,5.80227749,1713.7,1713.6,9.04040603]
[1693388122022,6.48021002,1713.7,1713.6,9.04040603]
[1693388122228,17.80218561,1713.7,1713.4,1.5284489]
[1693388122429,3.33248289,1713.6,1713.3,12.28292225]
[1693388122624,0.67793253,1713.5,1713.3,9.9902489]
[1693388122827,3.11363253,1713.5,1713.4,7.46026766]
[1693388123025,3.40549647,1713.5,1713.4,7.46026766]
[1693388123730,12.78394188,1713.7,1713.4,7.46026766]
[1693388123731,3.04063668,1713.7,1713.4,15.67629832]
[1693388123928,5.76818341,1713.7,1713.5,4.84937693]
[1693388124128,0.29184673,1713.6,1713.5,4.84937693]
[1693388124523,0.29184673,1713.6,1713.5,12.56004442]
[1693388124730,0.29184673,1713.6,1713.5,13.99362618]
[1693388125030,5.47644624,1713.7,1713.5,13.99362618]
[1693388125232,0.29184525,1713.6,1713.5,13.99362618]
[1693388127129,5.47644624,1713.7,1713.5,15.52306616]
[1693388127328,0.29184014,1713.6,1713.5,13.99362618]
[1693388127529,3.04074624,1713.6,1713.5,13.99362618]
[1693388127730,3.33258638,1713.6,1713.5,13.99362618]
[1693388127931,3.33258638,1713.6,1713.5,20.71651025]
[1693388128134,3.33258638,1713.6,1713.5,25.97051025]
[1693388128135,0.29184014,1713.6,1713.5,25.97051025]
[1693388129629,3.33258638,1713.6,1713.5,25.97051025]
[1693388129832,0.29184014,1713.6,1713.5,25.97051025]
[1693388130129,3.33258638,1713.6,1713.5,25.97051025]
[1693388132827,4.01051891,1713.6,1713.5,25.97051025]
[1693388133032,4.01051891,1713.6,1713.5,22.89535156]
[1693388133533,4.01051891,1713.6,1713.5,10.91846749]
[1693388133732,3.48127267,1713.6,1713.5,10.91846749]
[1693388133939,3.48127267,1713.6,1713.5,7.71066749]
[1693388134239,7.28220547,1713.6,1713.5,7.71066749]
[1693388134439,6.52219544,1713.6,1713.5,7.71066749]
[1693388136040,6.52219544,1713.6,1713.5,9.14424925]
[1693388136644,5.84426291,1713.6,1713.5,9.14424925]
[1693388137341,6.52219544,1713.6,1713.5,7.71066749]
[1693388137545,3.2078,1713.4,1713.0,2.29415998]
[1693388137842,5.254,1712.9,1712.7,2.2946366]
[1693388138037,13.68881661,1712.8,1712.7,1.52984675]
[1693388138235,17.01981479,1712.8,1712.6,3.05887997]
[1693388138440,8.29194419,1712.7,1712.3,2.29510584]
[1693388138639,8.4618,1712.4,1712.2,6.88405391]
[1693388138840,0.67793253,1712.3,1712.2,1.5300681]
[1693388139044,8.20186901,1712.3,1712.2,1.5300681]
[1693388139241,8.20186901,1712.3,1712.0,6.26667997]
[1693388139242,8.20186901,1712.3,1712.0,2.29510584]
[1693388139438,8.4618,1712.1,1711.9,2.29510584]
[1693388139641,5.254,1712.0,1711.9,3.7286876]
[1693388139841,10.73173648,1712.1,1711.9,1.43358176]
[1693388140239,5.254,1712.0,1711.8,1.64157693]
[1693388140446,5.254,1712.0,1711.8,1.43358176]
[1693388140643,5.254,1712.0,1711.9,7.52646796]
[1693388142946,3.2078,1712.1,1711.9,14.42204489]
[1693388143252,3.2078,1712.1,1712.0,1.43358176]
[1693388143452,4.3761,1712.4,1712.0,1.43358176]
[1693388143659,5.254,1712.2,1712.1,1.64157693]
[1693388143855,5.93193253,1712.3,1712.1,1.64157693]
[1693388144152,5.93193253,1712.3,1712.2,1.43358176]
[1693388144353,5.93193253,1712.3,1712.1,1.64157693]
[1693388144851,5.254,1712.5,1712.2,12.79858194]
[1693388145058,5.254,1712.5,1712.3,1.64157693]
[1693388145247,5.254,1712.5,1712.4,1.43358176]
[1693388145553,5.93193253,1712.5,1712.3,4.84937693]
[1693388146058,5.93193253,1712.5,1712.3,6.28295869]
[1693388146650,5.254,1712.5,1712.3,6.28295869]
[1693388146852,3.6449,1712.7,1712.4,7.65322366]
[1693388146853,5.254,1712.7,1712.4,7.65322366]
[1693388147053,5.254,1712.7,1712.5,3.07515869]
[1693388147360,5.93193253,1712.7,1712.5,3.07515869]
[1693388147651,5.254,1712.7,1712.5,3.07515869]
[1693388147860,8.4618,1712.8,1712.5,8.32915869]
[1693388148859,8.4618,1712.8,1712.6,7.57223758]
[1693388149154,5.254,1712.9,1712.7,3.07515869]
[1693388149349,5.93193253,1712.9,1712.7,3.07515869]
[1693388149556,5.254,1712.9,1712.8,7.65572947]
[1693388151466,5.93193253,1712.9,1712.7,4.85813426]
[1693388151759,5.254,1712.8,1712.7,4.85813426]
[1693388151962,5.254,1712.8,1712.7,6.29171602]
[1693388152960,5.254,1712.8,1712.7,4.85813426]
[1693388153263,5.254,1712.8,1712.7,3.21655733]
[1693388153564,7.52393648,1712.8,1712.7,3.21655733]
[1693388160059,7.52393648,1712.8,1712.5,3.2078]
[1693388160357,7.52393648,1712.8,1712.6,1.43358176]
[1693388160358,5.93193253,1712.7,1712.6,1.43358176]
[1693388160660,5.254,1712.7,1712.6,1.43358176]